[Event "Late-Titled-Tuesday-Blitz-August-29-2023"]
[Site "Chess.com"]
[Date "2023.08.29"]
[Round "4"]
[White "Sajkochess"]
[Black "viktorskliarov"]
[Result "0-1"]
[WhiteElo "2416"]
[BlackElo "2688"]
[TimeControl "180+1"]
[EndTime "14:39:09 PDT"]
[Termination "viktorskliarov won by resignation"]

1. e4 {[%clk 0:03:00.9]} 1... c5 {[%clk 0:02:59.7]} 2. Nf3 {[%clk 0:03:01.2]}
2... Nc6 {[%clk 0:02:59.9]} 3. d4 {[%clk 0:03:01.7]} 3... cxd4 {[%clk
0:03:00.5]} 4. Nxd4 {[%clk 0:03:02.6]} 4... Nf6 {[%clk 0:03:01.3]} 5. Nc3 {[%clk
0:03:03]} 5... e5 {[%clk 0:03:01.5]} 6. Ndb5 {[%clk 0:03:03.4]} 6... d6 {[%clk
0:03:02]} 7. Bg5 {[%clk 0:03:03.3]} 7... a6 {[%clk 0:03:02.6]} 8. Bxf6 {[%clk
0:03:03.6]} 8... gxf6 {[%clk 0:03:01.3]} 9. Na3 {[%clk 0:03:04.1]} 9... b5
{[%clk 0:03:01.8]} 10. Nd5 {[%clk 0:03:03.8]} 10... f5 {[%clk 0:03:02.4]} 11. g3
{[%clk 0:03:03.6]} 11... fxe4 {[%clk 0:03:01.6]} 12. Bg2 {[%clk 0:03:03.9]}
12... Bg7 {[%clk 0:03:01]} 13. Bxe4 {[%clk 0:03:03.1]} 13... Be6 {[%clk
0:03:01.1]} 14. Qh5 {[%clk 0:02:55.3]} 14... Rc8 {[%clk 0:02:59.2]} 15. c3
{[%clk 0:02:55.2]} 15... Ne7 {[%clk 0:02:46.9]} 16. Rd1 {[%clk 0:02:54.2]} 16...
Nxd5 {[%clk 0:02:44.2]} 17. Bxd5 {[%clk 0:02:53.6]} 17... O-O {[%clk 0:02:42.8]}
18. Nc2 {[%clk 0:02:44.5]} 18... Bxd5 {[%clk 0:02:30.2]} 19. Rxd5 {[%clk
0:02:45.4]} 19... Rc5 {[%clk 0:02:30.6]} 20. Qd1 {[%clk 0:02:32.8]} 20... Qa8
{[%clk 0:02:27.5]} 21. Ne3 {[%clk 0:02:25.6]} 21... f5 {[%clk 0:01:58.4]} 22.
O-O {[%clk 0:02:16.9]} 22... f4 {[%clk 0:01:58.6]} 23. Rxc5 {[%clk 0:02:08.5]}
23... dxc5 {[%clk 0:01:59.5]} 24. Qd5+ {[%clk 0:02:06.7]} 24... Qxd5 {[%clk
0:01:52.4]} 25. Nxd5 {[%clk 0:02:06.7]} 25... Rd8 {[%clk 0:01:52.2]} 26. Rd1
{[%clk 0:01:59.9]} 26... Kf7 {[%clk 0:01:51.8]} 27. Kf1 {[%clk 0:01:56.3]} 27...
f3 {[%clk 0:01:49.8]} 28. Ke1 {[%clk 0:01:52.7]} 28... Bh6 {[%clk 0:01:46.9]}
29. b3 {[%clk 0:01:21.4]} 29... e4 {[%clk 0:01:08.7]} 30. h4 {[%clk 0:01:04.3]}
30... Rd7 {[%clk 0:00:29.1]} 31. g4 {[%clk 0:00:54.9]} 31... Ke6 {[%clk
0:00:29.2]} 32. c4 {[%clk 0:00:54.6]} 32... bxc4 {[%clk 0:00:29.2]} 33. bxc4
{[%clk 0:00:55.5]} 33... Rb7 {[%clk 0:00:24.6]} 34. g5 {[%clk 0:00:35.3]} 34...
Bg7 {[%clk 0:00:24.4]} 35. Kd2 {[%clk 0:00:19.8]} 35... Bd4 {[%clk 0:00:21.2]}
36. Re1 {[%clk 0:00:09]} 36... Rb2+ {[%clk 0:00:19.8]} 37. Kc1 {[%clk
0:00:09.1]} 37... Ke5 {[%clk 0:00:16.7]} 38. Ne3 {[%clk 0:00:03]} 38... Rxa2
{[%clk 0:00:14.9]} 39. Nc2 {[%clk 0:00:01.7]} 39... Bc3 {[%clk 0:00:13]} 40. Re3
{[%clk 0:00:01.8]} 40... Bb2+ {[%clk 0:00:09.6]} 41. Kd2 {[%clk 0:00:01.6]}
41... Bd4 {[%clk 0:00:09.9]} 42. Ra3 {[%clk 0:00:01.9]} 42... Rxa3 {[%clk
0:00:08.5]} 43. Nxa3 {[%clk 0:00:02.8]} 43... Bxf2 {[%clk 0:00:08.9]} 44. Nc2
{[%clk 0:00:03.7]} 44... Bd4 {[%clk 0:00:08.8]} 45. Ne1 {[%clk 0:00:03.3]} 45...
Kf4 {[%clk 0:00:08.9]} 46. Nc2 {[%clk 0:00:03.2]} 46... e3+ {[%clk 0:00:09.1]}
47. Kd3 {[%clk 0:00:04]} 47... e2 {[%clk 0:00:07.6]} 48. Ne1 {[%clk 0:00:04.2]}
48... Bf2 {[%clk 0:00:05.6]} 49. Nc2 {[%clk 0:00:02.9]} 49... e1=Q {[%clk
0:00:06.1]} 50. Nxe1 {[%clk 0:00:02.8]} 50... Bxe1 {[%clk 0:00:06.8]} 51. h5
{[%clk 0:00:03.4]} 51... Kxg5 {[%clk 0:00:07.1]} 52. Ke3 {[%clk 0:00:03.7]}
52... Kxh5 {[%clk 0:00:07.7]} 53. Kxf3 {[%clk 0:00:03.5]} 53... Bb4 {[%clk
0:00:08.6]} 54. Ke4 {[%clk 0:00:04.4]} 54... a5 {[%clk 0:00:09.4]} 55. Kd3
{[%clk 0:00:05.3]} 55... a4 {[%clk 0:00:10.3]} 56. Kc2 {[%clk 0:00:05.9]} 56...
a3 {[%clk 0:00:11.2]} 57. Kb3 {[%clk 0:00:06.4]} 57... Kg4 {[%clk 0:00:11.8]}
0-1

[Event "Late-Titled-Tuesday-Blitz-August-29-2023"]
[Site "Chess.com"]
[Date "2023.08.29"]
[Round "4"]
[White "DeTimmerman"]
[Black "Jaka_Brilej"]
[Result "1/2-1/2"]
[WhiteElo "2686"]
[BlackElo "2514"]
[TimeControl "180+1"]
[EndTime "14:39:15 PDT"]
[Termination "Game drawn by repetition"]

1. e4 {[%clk 0:03:00]} 1... e6 {[%clk 0:02:59.8]} 2. d4 {[%clk 0:02:59.7]} 2...
d5 {[%clk 0:03:00.4]} 3. Nc3 {[%clk 0:02:55.5]} 3... Nf6 {[%clk 0:02:59.5]} 4.
Bg5 {[%clk 0:02:51.5]} 4... dxe4 {[%clk 0:02:58.9]} 5. Nxe4 {[%clk 0:02:51.1]}
5... Be7 {[%clk 0:02:59.2]} 6. Bxf6 {[%clk 0:02:38.1]} 6... gxf6 {[%clk
0:02:58.7]} 7. Nf3 {[%clk 0:02:39]} 7... a6 {[%clk 0:02:58.2]} 8. g3 {[%clk
0:02:23.4]} 8... f5 {[%clk 0:02:58]} 9. Ned2 {[%clk 0:02:21]} 9... b5 {[%clk
0:02:52.9]} 10. Bg2 {[%clk 0:02:21.1]} 10... Bb7 {[%clk 0:02:53.1]} 11. O-O
{[%clk 0:02:07.2]} 11... Nd7 {[%clk 0:02:51.7]} 12. a4 {[%clk 0:02:04.9]} 12...
O-O {[%clk 0:02:45.4]} 13. axb5 {[%clk 0:01:58.1]} 13... axb5 {[%clk 0:02:46.3]}
14. Qe2 {[%clk 0:01:58.6]} 14... b4 {[%clk 0:02:25.2]} 15. Nc4 {[%clk
0:01:12.6]} 15... Bf6 {[%clk 0:02:15.5]} 16. Nce5 {[%clk 0:01:12.4]} 16... Nxe5
{[%clk 0:02:09.3]} 17. dxe5 {[%clk 0:01:10.6]} 17... Be7 {[%clk 0:02:09.3]} 18.
Rfd1 {[%clk 0:01:10]} 18... Rxa1 {[%clk 0:01:47.5]} 19. Rxa1 {[%clk 0:01:10.9]}
19... Qd7 {[%clk 0:01:41.4]} 20. Rd1 {[%clk 0:01:09.4]} 20... Qc6 {[%clk
0:01:32.6]} 21. Ne1 {[%clk 0:01:09.1]} 21... Qb6 {[%clk 0:01:32.5]} 22. Bxb7
{[%clk 0:01:08.5]} 22... Qxb7 {[%clk 0:01:33.4]} 23. Rd7 {[%clk 0:01:08.1]}
23... Bc5 {[%clk 0:01:29.9]} 24. Qd2 {[%clk 0:01:03.3]} 24... Qc6 {[%clk
0:01:25.1]} 25. h4 {[%clk 0:00:52.5]} 25... Bd6 {[%clk 0:00:56.3]} 26. Qg5+
{[%clk 0:00:52.6]} 26... Kh8 {[%clk 0:00:56.1]} 27. Qf6+ {[%clk 0:00:53.5]}
27... Kg8 {[%clk 0:00:56.5]} 28. Rd8 {[%clk 0:00:54.4]} 28... Rxd8 {[%clk
0:00:51.2]} 29. Qxd8+ {[%clk 0:00:55.3]} 29... Bf8 {[%clk 0:00:51.5]} 30. h5
{[%clk 0:00:52.6]} 30... h6 {[%clk 0:00:50.5]} 31. Qd3 {[%clk 0:00:48.2]} 31...
Bg7 {[%clk 0:00:43.5]} 32. f4 {[%clk 0:00:46.1]} 32... Bf8 {[%clk 0:00:42.5]}
33. Nf3 {[%clk 0:00:42.9]} 33... Bc5+ {[%clk 0:00:42.5]} 34. Kf1 {[%clk
0:00:40.9]} 34... Kg7 {[%clk 0:00:37.6]} 35. Ke2 {[%clk 0:00:37.6]} 35... Bb6
{[%clk 0:00:26.3]} 36. Kd2 {[%clk 0:00:31.8]} 36... Qc5 {[%clk 0:00:25.4]} 37.
Ne1 {[%clk 0:00:21.1]} 37... Qf2+ {[%clk 0:00:24.3]} 38. Qe2 {[%clk 0:00:21.6]}
38... Qxg3 {[%clk 0:00:23.2]} 39. Qg2 {[%clk 0:00:21.8]} 39... Qxg2+ {[%clk
0:00:20.3]} 40. Nxg2 {[%clk 0:00:22.7]} 40... f6 {[%clk 0:00:20.9]} 41. exf6+
{[%clk 0:00:18.3]} 41... Kxf6 {[%clk 0:00:21.8]} 42. Ke2 {[%clk 0:00:15.4]}
42... e5 {[%clk 0:00:21.9]} 43. fxe5+ {[%clk 0:00:15.7]} 43... Kxe5 {[%clk
0:00:22.8]} 44. Ne1 {[%clk 0:00:15.4]} 44... c5 {[%clk 0:00:20.3]} 45. Kf3
{[%clk 0:00:13.1]} 45... c4 {[%clk 0:00:19.4]} 46. Ng2 {[%clk 0:00:11]} 46...
Bd4 {[%clk 0:00:18.7]} 47. b3 {[%clk 0:00:10.9]} 47... cxb3 {[%clk 0:00:19.6]}
48. cxb3 {[%clk 0:00:11.6]} 48... Bb2 {[%clk 0:00:19.3]} 49. Nf4 {[%clk
0:00:11.9]} 49... Kd4 {[%clk 0:00:18.1]} 50. Ne2+ {[%clk 0:00:09.8]} 50... Kd3
{[%clk 0:00:17.4]} 51. Ng3 {[%clk 0:00:10.7]} 51... Kc3 {[%clk 0:00:17.6]} 52.
Nxf5 {[%clk 0:00:11.2]} 52... Bc1 {[%clk 0:00:18.2]} 53. Ke4 {[%clk 0:00:04.2]}
53... Kxb3 {[%clk 0:00:18.4]} 54. Nd4+ {[%clk 0:00:05.1]} 54... Ka2 {[%clk
0:00:17.7]} 55. Kd3 {[%clk 0:00:05.1]} 55... b3 {[%clk 0:00:16.5]} 56. Ne2
{[%clk 0:00:06]} 56... b2 {[%clk 0:00:15.8]} 57. Nc3+ {[%clk 0:00:05.1]} 57...
Kb3 {[%clk 0:00:16.2]} 58. Nb1 {[%clk 0:00:05.1]} 58... Bg5 {[%clk 0:00:16.6]}
59. Nc3 {[%clk 0:00:03.9]} 59... Bf6 {[%clk 0:00:16.5]} 60. Nb1 {[%clk
0:00:04.8]} 60... Bg5 {[%clk 0:00:16.9]} 61. Nc3 {[%clk 0:00:04.9]} 61... Bf6
{[%clk 0:00:17.6]} 62. Nb1 {[%clk 0:00:05.2]} 62... Ka2 {[%clk 0:00:18.1]} 63.
Kc2 {[%clk 0:00:05.9]} 63... Bg5 {[%clk 0:00:17.6]} 64. Nc3+ {[%clk 0:00:06.2]}
64... Ka1 {[%clk 0:00:17.4]} 65. Nb1 {[%clk 0:00:07.1]} 65... Ka2 {[%clk
0:00:17.9]} 66. Nc3+ {[%clk 0:00:07.6]} 66... Ka3 {[%clk 0:00:18.3]} 67. Nb1+
{[%clk 0:00:08.5]} 67... Ka2 {[%clk 0:00:18.7]} 1/2-1/2

[Event "Late-Titled-Tuesday-Blitz-August-29-2023"]
[Site "Chess.com"]
[Date "2023.08.29"]
[Round "4"]
[White "Oleksandr_Bortnyk"]
[Black "Eternauta2400"]
[Result "0-1"]
[WhiteElo "3032"]
[BlackElo "2844"]
[TimeControl "180+1"]
[EndTime "14:39:17 PDT"]
[Termination "Eternauta2400 won on time"]

1. e4 {[%clk 0:03:00.9]} 1... c6 {[%clk 0:02:58.8]} 2. c4 {[%clk 0:02:57.4]}
2... d5 {[%clk 0:02:59.7]} 3. cxd5 {[%clk 0:02:58.3]} 3... cxd5 {[%clk
0:02:59.3]} 4. exd5 {[%clk 0:02:58.9]} 4... Nf6 {[%clk 0:02:59.7]} 5. Qa4+
{[%clk 0:02:59.2]} 5... Nbd7 {[%clk 0:02:59]} 6. Nc3 {[%clk 0:02:59.3]} 6... g6
{[%clk 0:02:59.6]} 7. Bc4 {[%clk 0:02:59.6]} 7... Bg7 {[%clk 0:03:00.3]} 8. d3
{[%clk 0:03:00.3]} 8... O-O {[%clk 0:03:00.7]} 9. Nf3 {[%clk 0:03:01]} 9... a6
{[%clk 0:03:00.9]} 10. Qa3 {[%clk 0:03:01.3]} 10... b6 {[%clk 0:03:00.6]} 11.
O-O {[%clk 0:03:01.4]} 11... Bb7 {[%clk 0:03:01]} 12. Re1 {[%clk 0:03:01.9]}
12... Re8 {[%clk 0:03:01.4]} 13. Be3 {[%clk 0:03:02.2]} 13... b5 {[%clk
0:03:01.5]} 14. Bb3 {[%clk 0:03:02.5]} 14... Nb6 {[%clk 0:03:00.3]} 15. Bxb6
{[%clk 0:03:02.7]} 15... Qxb6 {[%clk 0:03:01.2]} 16. Qb4 {[%clk 0:03:03.2]}
16... Qd6 {[%clk 0:03:00.7]} 17. Qxd6 {[%clk 0:03:02]} 17... exd6 {[%clk
0:03:01.6]} 18. a3 {[%clk 0:03:01.6]} 18... Nd7 {[%clk 0:02:46.1]} 19. d4 {[%clk
0:03:01.1]} 19... Nb6 {[%clk 0:02:42.6]} 20. Kf1 {[%clk 0:03:01.4]} 20... Kf8
{[%clk 0:02:23.9]} 21. Rxe8+ {[%clk 0:03:01.1]} 21... Rxe8 {[%clk 0:02:23.6]}
22. Re1 {[%clk 0:03:02]} 22... Rc8 {[%clk 0:02:23.4]} 23. Ke2 {[%clk 0:02:59.9]}
23... h6 {[%clk 0:02:05.1]} 24. h4 {[%clk 0:02:55.7]} 24... Ke7 {[%clk
0:01:53.1]} 25. Kd3+ {[%clk 0:02:49]} 25... Kd7 {[%clk 0:01:53.5]} 26. g4 {[%clk
0:02:44.9]} 26... a5 {[%clk 0:01:46.3]} 27. a4 {[%clk 0:02:41.4]} 27... b4
{[%clk 0:01:40]} 28. Nb5 {[%clk 0:02:18.8]} 28... Nxd5 {[%clk 0:01:39.4]} 29.
Bxd5 {[%clk 0:02:14.4]} 29... Bxd5 {[%clk 0:01:38.8]} 30. Nd2 {[%clk 0:02:15.3]}
30... Bf6 {[%clk 0:01:20.2]} 31. h5 {[%clk 0:01:50.5]} 31... gxh5 {[%clk
0:01:17.9]} 32. gxh5 {[%clk 0:01:51.4]} 32... Bg5 {[%clk 0:00:50.2]} 33. Rf1
{[%clk 0:01:31.1]} 33... Bxd2 {[%clk 0:00:41.1]} 34. Kxd2 {[%clk 0:01:32]} 34...
Bb3 {[%clk 0:00:40]} 35. d5 {[%clk 0:00:53.7]} 35... Rc5 {[%clk 0:00:39.8]} 36.
Nd4 {[%clk 0:00:47.9]} 36... Rxd5 {[%clk 0:00:37.3]} 37. Ke3 {[%clk 0:00:48.2]}
37... Bxa4 {[%clk 0:00:36.2]} 38. Ra1 {[%clk 0:00:28.6]} 38... Bc6 {[%clk
0:00:35.6]} 39. Rg1 {[%clk 0:00:29.5]} 39... Rxh5 {[%clk 0:00:34.2]} 40. Rg7
{[%clk 0:00:29.7]} 40... Bd5 {[%clk 0:00:32.8]} 41. Rg1 {[%clk 0:00:18.5]} 41...
Re5+ {[%clk 0:00:31.6]} 42. Kd3 {[%clk 0:00:18.6]} 42... Rg5 {[%clk 0:00:29.7]}
43. Ra1 {[%clk 0:00:18.3]} 43... h5 {[%clk 0:00:29.8]} 44. Ke3 {[%clk
0:00:15.6]} 44... Bb7 {[%clk 0:00:23.7]} 45. f3 {[%clk 0:00:15.5]} 45... Re5+
{[%clk 0:00:19.9]} 46. Kf4 {[%clk 0:00:14.5]} 46... Kc7 {[%clk 0:00:18]} 47. b3
{[%clk 0:00:10.8]} 47... Kb6 {[%clk 0:00:18.1]} 48. Rc1 {[%clk 0:00:10.7]} 48...
Rd5 {[%clk 0:00:16.9]} 49. Nf5 {[%clk 0:00:10.7]} 49... Rd3 {[%clk 0:00:15.9]}
50. Ne3 {[%clk 0:00:10.9]} 50... Rxb3 {[%clk 0:00:15.6]} 51. Nc4+ {[%clk
0:00:11.4]} 51... Ka6 {[%clk 0:00:13.7]} 52. Ra1 {[%clk 0:00:11.6]} 52... Rxf3+
{[%clk 0:00:13.5]} 53. Kg5 {[%clk 0:00:11.5]} 53... f6+ {[%clk 0:00:13.4]} 54.
Kxh5 {[%clk 0:00:10.6]} 54... Rf5+ {[%clk 0:00:12.8]} 55. Kg6 {[%clk 0:00:11.2]}
55... Rc5 {[%clk 0:00:12.9]} 56. Nxd6 {[%clk 0:00:11.1]} 56... f5 {[%clk
0:00:12.5]} 57. Kg5 {[%clk 0:00:08.6]} 57... b3 {[%clk 0:00:12.8]} 58. Kf4
{[%clk 0:00:03.7]} 58... Bd5 {[%clk 0:00:10.4]} 59. Ke3 {[%clk 0:00:02.9]} 59...
Rc6 {[%clk 0:00:07.6]} 60. Nxf5 {[%clk 0:00:03]} 60... b2 {[%clk 0:00:05.3]} 61.
Rb1 {[%clk 0:00:03.1]} 61... Rb6 {[%clk 0:00:06]} 0-1

[Event "Late-Titled-Tuesday-Blitz-August-29-2023"]
[Site "Chess.com"]
[Date "2023.08.29"]
[Round "4"]
[White "crossingthestreet"]
[Black "grzechu96"]
[Result "1-0"]
[WhiteElo "2544"]
[BlackElo "2695"]
[TimeControl "180+1"]
[EndTime "14:39:18 PDT"]
[Termination "crossingthestreet won on time"]

1. c4 {[%clk 0:03:00.9]} 1... e5 {[%clk 0:02:58.3]} 2. Nc3 {[%clk 0:03:01.3]}
2... Nf6 {[%clk 0:02:57.7]} 3. Nf3 {[%clk 0:03:02]} 3... Nc6 {[%clk 0:02:57.2]}
4. e4 {[%clk 0:03:02.7]} 4... Bb4 {[%clk 0:02:50.1]} 5. d3 {[%clk 0:02:59.3]}
5... d6 {[%clk 0:02:48.7]} 6. a3 {[%clk 0:02:55.8]} 6... Bc5 {[%clk 0:02:48.1]}
7. b4 {[%clk 0:02:56]} 7... Bb6 {[%clk 0:02:46.5]} 8. Na4 {[%clk 0:02:56.6]}
8... Bd4 {[%clk 0:02:46.8]} 9. Rb1 {[%clk 0:02:56.3]} 9... O-O {[%clk
0:02:46.3]} 10. Be2 {[%clk 0:02:53]} 10... a6 {[%clk 0:02:36.1]} 11. Nxd4 {[%clk
0:02:41.4]} 11... Nxd4 {[%clk 0:02:31.7]} 12. Nc3 {[%clk 0:02:40.3]} 12... b5
{[%clk 0:02:29.5]} 13. Be3 {[%clk 0:02:34.9]} 13... c6 {[%clk 0:02:18.5]} 14.
O-O {[%clk 0:02:30.9]} 14... Be6 {[%clk 0:02:16.4]} 15. f4 {[%clk 0:02:28.1]}
15... Nxe2+ {[%clk 0:02:01.2]} 16. Qxe2 {[%clk 0:02:27.5]} 16... exf4 {[%clk
0:01:42]} 17. Bxf4 {[%clk 0:02:23.3]} 17... Ng4 {[%clk 0:01:40.6]} 18. h3 {[%clk
0:02:08.9]} 18... Ne5 {[%clk 0:01:38.8]} 19. c5 {[%clk 0:02:07.9]} 19... f6
{[%clk 0:01:38.5]} 20. Rfd1 {[%clk 0:01:57.1]} 20... dxc5 {[%clk 0:01:36]} 21.
Be3 {[%clk 0:01:50.7]} 21... cxb4 {[%clk 0:01:31.2]} 22. axb4 {[%clk 0:01:50.4]}
22... a5 {[%clk 0:01:26.3]} 23. Bc5 {[%clk 0:01:50.1]} 23... Re8 {[%clk
0:01:22.6]} 24. d4 {[%clk 0:01:45.5]} 24... Bc4 {[%clk 0:01:20.6]} 25. Qe3
{[%clk 0:01:32]} 25... Nd7 {[%clk 0:01:12.7]} 26. Qg3 {[%clk 0:01:23.6]} 26...
axb4 {[%clk 0:00:33.6]} 27. Bxb4 {[%clk 0:01:21.1]} 27... Qb6 {[%clk 0:00:32.1]}
28. Kh1 {[%clk 0:01:02.8]} 28... Nf8 {[%clk 0:00:24.5]} 29. e5 {[%clk
0:00:56.1]} 29... f5 {[%clk 0:00:17.4]} 30. Bc5 {[%clk 0:00:46.8]} 30... Qb7
{[%clk 0:00:15.4]} 31. Qg5 {[%clk 0:00:35.8]} 31... Ne6 {[%clk 0:00:13.1]} 32.
Qxf5 {[%clk 0:00:35]} 32... Qf7 {[%clk 0:00:09]} 33. Qxf7+ {[%clk 0:00:33.4]}
33... Kxf7 {[%clk 0:00:09.9]} 34. Bd6 {[%clk 0:00:31.6]} 34... Kg8 {[%clk
0:00:06.9]} 35. Ne4 {[%clk 0:00:32]} 35... Bd5 {[%clk 0:00:06.4]} 36. Nc3 {[%clk
0:00:32.5]} 36... Bc4 {[%clk 0:00:06.8]} 37. Rb2 {[%clk 0:00:33.1]} 37... Ra7
{[%clk 0:00:06.3]} 38. Rf2 {[%clk 0:00:33.2]} 38... Rb7 {[%clk 0:00:05.4]} 39.
d5 {[%clk 0:00:30.7]} 39... cxd5 {[%clk 0:00:05.5]} 40. Nxd5 {[%clk 0:00:31.4]}
40... Bxd5 {[%clk 0:00:05.7]} 41. Rxd5 {[%clk 0:00:31.7]} 41... b4 {[%clk
0:00:06.6]} 42. Rb2 {[%clk 0:00:31.7]} 42... b3 {[%clk 0:00:07.2]} 43. Rd3
{[%clk 0:00:32]} 43... Nf4 {[%clk 0:00:05.4]} 44. Rdxb3 {[%clk 0:00:32.3]} 44...
Rxb3 {[%clk 0:00:05.5]} 45. Rxb3 {[%clk 0:00:32.6]} 45... Ne6 {[%clk 0:00:06.1]}
46. Rb7 {[%clk 0:00:32.3]} 46... Ng5 {[%clk 0:00:05.1]} 47. Rb5 {[%clk
0:00:29.8]} 47... Nf7 {[%clk 0:00:05.2]} 48. Bc7 {[%clk 0:00:30.4]} 48... h6
{[%clk 0:00:05.3]} 49. Kh2 {[%clk 0:00:30.4]} 49... Kh7 {[%clk 0:00:05.8]} 50.
Kg3 {[%clk 0:00:31]} 50... Kg6 {[%clk 0:00:06.3]} 51. Kf4 {[%clk 0:00:31.7]}
51... Ng5 {[%clk 0:00:06.8]} 52. Rb6+ {[%clk 0:00:28.7]} 52... Kf7 {[%clk
0:00:06.9]} 53. Bd6 {[%clk 0:00:27.9]} 53... Ne6+ {[%clk 0:00:06.6]} 54. Ke4
{[%clk 0:00:28.5]} 54... Ra8 {[%clk 0:00:05.9]} 55. Rb7+ {[%clk 0:00:28.1]}
55... Kg6 {[%clk 0:00:06.4]} 56. g3 {[%clk 0:00:27.6]} 56... Ra5 {[%clk
0:00:06.1]} 57. Bb4 {[%clk 0:00:26.1]} 57... Ra4 {[%clk 0:00:06.2]} 58. Kd5
{[%clk 0:00:26.8]} 58... Nd8 {[%clk 0:00:03.6]} 59. Rb8 {[%clk 0:00:27.1]} 59...
Nf7 {[%clk 0:00:03]} 60. Rb6+ {[%clk 0:00:27.3]} 60... Kh7 {[%clk 0:00:03]} 61.
e6 {[%clk 0:00:27.9]} 61... Ng5 {[%clk 0:00:02]} 62. e7 {[%clk 0:00:28]} 62...
Ra8 {[%clk 0:00:02.5]} 63. h4 {[%clk 0:00:27.6]} 63... Nf7 {[%clk 0:00:02.6]}
64. Ke6 {[%clk 0:00:27.4]} 64... Kg8 {[%clk 0:00:02.8]} 65. Bd6 {[%clk
0:00:21.6]} 65... Re8 {[%clk 0:00:02.5]} 66. Rb8 {[%clk 0:00:21.3]} 66... Rxb8
{[%clk 0:00:02.5]} 67. Bxb8 {[%clk 0:00:21.4]} 67... Nd6 {[%clk 0:00:01.9]} 68.
Bxd6 {[%clk 0:00:20.7]} 1-0

[Event "Late-Titled-Tuesday-Blitz-August-29-2023"]
[Site "Chess.com"]
[Date "2023.08.29"]
[Round "4"]
[White "PepeCuenca"]
[Black "LeninGuerra"]
[Result "1/2-1/2"]
[WhiteElo "2727"]
[BlackElo "2542"]
[TimeControl "180+1"]
[EndTime "14:39:20 PDT"]
[Termination "Game drawn by repetition"]

1. e4 {[%clk 0:03:00.9]} 1... c5 {[%clk 0:02:58.4]} 2. Nf3 {[%clk 0:03:01]} 2...
e6 {[%clk 0:02:57.8]} 3. d4 {[%clk 0:02:59.5]} 3... cxd4 {[%clk 0:02:58.1]} 4.
Nxd4 {[%clk 0:03:00.2]} 4... Nc6 {[%clk 0:02:58.3]} 5. Nc3 {[%clk 0:03:00.5]}
5... Qc7 {[%clk 0:02:58.3]} 6. Be3 {[%clk 0:03:00.8]} 6... a6 {[%clk 0:02:56.6]}
7. Bd3 {[%clk 0:03:00.9]} 7... b5 {[%clk 0:02:54.9]} 8. Nxc6 {[%clk 0:02:59.4]}
8... dxc6 {[%clk 0:02:54.6]} 9. a4 {[%clk 0:02:57]} 9... b4 {[%clk 0:02:50.9]}
10. Nb1 {[%clk 0:02:56.7]} 10... Nf6 {[%clk 0:02:49.8]} 11. Nd2 {[%clk 0:02:54]}
11... a5 {[%clk 0:02:44.5]} 12. O-O {[%clk 0:02:49.8]} 12... Be7 {[%clk
0:02:39.5]} 13. Nc4 {[%clk 0:02:46.4]} 13... Ba6 {[%clk 0:02:12.6]} 14. f3
{[%clk 0:02:15.5]} 14... O-O {[%clk 0:02:03.7]} 15. Qe1 {[%clk 0:02:09.2]} 15...
Bxc4 {[%clk 0:02:02.6]} 16. Bxc4 {[%clk 0:02:09.1]} 16... Qe5 {[%clk 0:01:59.6]}
17. b3 {[%clk 0:01:46.8]} 17... Bc5 {[%clk 0:01:59.3]} 18. Qf2 {[%clk
0:01:41.3]} 18... Bxe3 {[%clk 0:01:52.6]} 19. Qxe3 {[%clk 0:01:42.2]} 19... Rfd8
{[%clk 0:01:51.5]} 20. Rad1 {[%clk 0:01:40.7]} 20... Qc7 {[%clk 0:01:17.3]} 21.
Qc5 {[%clk 0:01:32.3]} 21... Rxd1 {[%clk 0:01:15.2]} 22. Rxd1 {[%clk 0:01:31.9]}
22... Rd8 {[%clk 0:01:08.4]} 23. Rd3 {[%clk 0:01:19.1]} 23... Rxd3 {[%clk
0:01:04.2]} 24. Bxd3 {[%clk 0:01:12.5]} 24... Nd7 {[%clk 0:00:58.6]} 25. Qe7
{[%clk 0:01:04.5]} 25... Qb6+ {[%clk 0:00:58.4]} 26. Kf1 {[%clk 0:01:02.1]}
26... Nf8 {[%clk 0:00:58.7]} 27. Qg5 {[%clk 0:00:58.5]} 27... f6 {[%clk
0:00:44.2]} 28. Qd2 {[%clk 0:00:38.8]} 28... Kf7 {[%clk 0:00:36]} 29. Bc4 {[%clk
0:00:38.2]} 29... Ke7 {[%clk 0:00:36.3]} 30. g3 {[%clk 0:00:32]} 30... Nd7
{[%clk 0:00:34.1]} 31. Kg2 {[%clk 0:00:28.1]} 31... Ne5 {[%clk 0:00:30.5]} 32.
Be2 {[%clk 0:00:27.1]} 32... c5 {[%clk 0:00:20.8]} 33. Bb5 {[%clk 0:00:24.4]}
33... Qd6 {[%clk 0:00:20.4]} 34. Qe3 {[%clk 0:00:16.4]} 34... Qd4 {[%clk
0:00:18.7]} 35. Kf2 {[%clk 0:00:05.6]} 35... Qxe3+ {[%clk 0:00:17.7]} 36. Kxe3
{[%clk 0:00:05.9]} 36... Nf7 {[%clk 0:00:17.7]} 37. Be2 {[%clk 0:00:05.2]} 37...
Nd6 {[%clk 0:00:18]} 38. Bd3 {[%clk 0:00:05.5]} 38... e5 {[%clk 0:00:14.1]} 39.
f4 {[%clk 0:00:05.9]} 39... Kd7 {[%clk 0:00:13.2]} 40. f5 {[%clk 0:00:05.7]}
40... Kc6 {[%clk 0:00:12.9]} 41. Bc4 {[%clk 0:00:05.3]} 41... Kb6 {[%clk
0:00:12.4]} 42. g4 {[%clk 0:00:05.2]} 42... h6 {[%clk 0:00:11]} 43. h4 {[%clk
0:00:05.1]} 43... Nxc4+ {[%clk 0:00:08.5]} 44. bxc4 {[%clk 0:00:05.3]} 44... Kc6
{[%clk 0:00:09.1]} 45. Kf3 {[%clk 0:00:05.4]} 45... Kd6 {[%clk 0:00:09.6]} 46.
g5 {[%clk 0:00:04.9]} 46... hxg5 {[%clk 0:00:08.9]} 47. hxg5 {[%clk 0:00:05]}
47... Ke7 {[%clk 0:00:06.5]} 48. Kg4 {[%clk 0:00:05.5]} 48... Kf8 {[%clk
0:00:04.8]} 49. Kh4 {[%clk 0:00:05.6]} 49... Kg8 {[%clk 0:00:04.5]} 50. Kg4
{[%clk 0:00:05.8]} 50... Kf8 {[%clk 0:00:04.8]} 51. Kh3 {[%clk 0:00:05.5]} 51...
Kg8 {[%clk 0:00:04.3]} 52. Kg3 {[%clk 0:00:06]} 52... Kf8 {[%clk 0:00:04.7]} 53.
Kg4 {[%clk 0:00:06.5]} 53... Kg8 {[%clk 0:00:04.9]} 54. Kh5 {[%clk 0:00:07.2]}
54... Kh7 {[%clk 0:00:02.5]} 55. Kh4 {[%clk 0:00:06.2]} 55... Kg8 {[%clk
0:00:02.6]} 56. Kg4 {[%clk 0:00:06.7]} 56... Kh8 {[%clk 0:00:02.4]} 57. Kh5
{[%clk 0:00:07]} 57... Kh7 {[%clk 0:00:02.7]} 58. Kh4 {[%clk 0:00:07.2]} 58...
Kh8 {[%clk 0:00:03.1]} 59. Kg3 {[%clk 0:00:07.8]} 59... Kh7 {[%clk 0:00:03.5]}
60. Kf3 {[%clk 0:00:08.2]} 60... Kh8 {[%clk 0:00:04]} 61. Kg4 {[%clk 0:00:08.5]}
61... Kg8 {[%clk 0:00:03.6]} 62. Kh5 {[%clk 0:00:08.3]} 62... Kh7 {[%clk
0:00:04]} 1/2-1/2